bitfinex-derivatives/quotes_SOLF0:USTF0_20251024
["timestamp","ask_amount","ask_price","bid_price","bid_amount"]
[1761319080145,26.0,190.17,189.99,2.79]
[1761319080348,50.98,190.15,190.0,2.79]
[1761319081549,50.98,190.15,190.01,2.79]
[1761319081550,65.66,190.15,190.01,2.79]
[1761319082450,0.91548833,190.19,190.01,2.79]
[1761319082650,65.66,190.18,190.01,2.79]
[1761319084748,63.84,190.18,190.01,2.79]
[1761319087553,5.98743622,190.19,190.02,2.83]
[1761319087851,66.88743622,190.19,190.02,2.83]
[1761319088749,5.98743622,190.19,190.02,2.83]
[1761319088951,5.98743622,190.19,190.03,2.83]
[1761319089154,5.98743622,190.19,190.04,2.83]
[1761319089660,0.91548833,190.19,190.04,2.83]
[1761319089964,0.91548833,190.19,190.06,2.83]
[1761319092556,5.07194789,190.17,190.06,2.83]
[1761319094855,5.07194789,190.17,190.0,2.83]
[1761319095256,28.46,190.16,190.0,2.83]
[1761319095564,46.76,190.16,190.0,2.83]
[1761319096463,52.61194789,190.17,190.0,2.83]
[1761319096662,5.07194789,190.17,190.0,2.83]
[1761319097065,16.43194789,190.17,190.01,2.83]
[1761319097865,5.07194789,190.17,190.01,2.83]
[1761319098168,5.07194789,190.17,190.03,2.83]
[1761319099461,5.07194789,190.17,190.04,4.89980051]
[1761319099661,0.91548833,190.19,190.05,7.72980051]
[1761319099962,0.91548833,190.19,190.06,2.83]
[1761319100158,0.91548833,190.19,190.08,2.83]
[1761319101161,0.91548833,190.19,190.09,2.83]
[1761319102066,0.91548833,190.19,190.1,2.83]
[1761319103069,0.91548833,190.19,190.1,7.72980051]
[1761319103268,0.91548833,190.19,190.11,2.83]
[1761319104766,2.21255426,190.16,190.11,2.83]
[1761319105161,0.91548833,190.19,190.12,7.72980051]
[1761319105361,2.21255426,190.16,190.13,2.83]
[1761319106061,0.91548833,190.19,190.13,7.72980051]
[1761319106267,2.21255426,190.18,190.14,2.83]
[1761319107465,0.91548833,190.19,190.14,2.83]
[1761319107667,0.91548833,190.19,190.15,7.72980051]
[1761319108066,0.91548833,190.19,190.16,2.83]
[1761319108366,0.91548833,190.19,190.14,7.72980051]
[1761319108576,0.91548833,190.19,190.15,2.83]
[1761319109467,0.91548833,190.19,190.14,4.89980051]
[1761319109974,0.91548833,190.19,190.15,2.83]
[1761319110472,3.12804259,190.19,190.15,2.83]
[1761319112573,0.91548833,190.19,190.15,2.83]
[1761319112869,15.76,190.39,190.17,4.89980051]
[1761319113075,2.21255426,190.27,190.19,7.72980051]
[1761319113270,2.21255426,190.27,190.2,2.83]
[1761319113477,2.21255426,190.29,190.21,2.83]
[1761319113771,2.21255426,190.29,190.21,7.72980051]
[1761319113971,2.21255426,190.29,190.22,2.83]
[1761319116075,2.21255426,190.28,190.22,2.83]
[1761319116870,0.91494676,190.3,190.22,2.83]
[1761319117068,3.12750102,190.3,190.22,2.83]
[1761319118069,2.21255426,190.32,190.22,2.83]
[1761319118471,2.21255426,190.32,190.23,2.21255426]
[1761319118671,0.91481447,190.35,190.24,2.76]
[1761319119064,2.21255426,190.34,190.24,2.76]
[1761319119270,2.21255426,190.34,190.26,2.76]
[1761319120169,2.21255426,190.36,190.26,2.76]
[1761319120463,2.21255426,190.36,190.28,2.76]
[1761319123670,2.21255426,190.29,190.16,1.99980051]
[1761319123872,2.21255426,190.17,190.08,2.76]
[1761319124071,2.21255426,190.1,190.08,2.76]
[1761319124274,5.68,190.19,190.08,2.76]
[1761319124874,215.06408742,190.3,190.08,2.76]
[1761319125079,65.84,190.29,190.08,2.76]
[1761319125685,65.86,190.28,190.08,2.76]
[1761319125984,65.86,190.28,189.92,9.69626452]
[1761319125985,70.70408742,190.28,189.98,2.76]
[1761319126381,70.70408742,190.28,189.99,2.76]
[1761319127182,15.76,190.27,190.0,4.7363]
[1761319127384,15.76,190.27,190.01,2.76]
[1761319127881,65.88,190.26,190.01,2.76]
[1761319128086,63.2,190.25,190.03,2.76]
[1761319134588,78.96,190.25,190.03,2.76]
[1761319134792,83.80408742,190.25,190.03,2.76]
[1761319135792,65.76,190.24,190.03,2.76]
[1761319136888,4.84408742,190.26,190.03,2.76]
[1761319137088,65.74,190.25,190.03,2.76]
[1761319137983,4.84408742,190.27,190.03,2.76]
[1761319138179,41.76,190.29,190.03,2.76]
[1761319138180,65.8,190.26,190.03,2.76]
[1761319138381,65.8,190.26,190.04,4.7351]
[1761319138582,65.8,190.26,190.05,2.85]
[1761319138786,65.8,190.25,190.05,2.85]
[1761319139783,26.0,190.24,190.05,2.85]
[1761319140388,26.0,190.24,190.06,2.85]
[1761319140686,65.8,190.23,190.06,2.85]
[1761319140994,65.8,190.23,190.06,7.5846]
[1761319141292,65.8,190.23,190.07,2.85]
[1761319142292,65.8,190.23,190.07,7.5843]
[1761319142496,65.8,190.23,190.08,2.85]
[1761319147498,26.0,190.28,190.09,2.69]
[1761319147793,65.66,190.27,190.09,2.69]
[1761319150398,65.66,190.27,190.07,4.7344]
[1761319150399,26.0,190.28,190.08,2.69]
[1761319150602,30.84408742,190.31,190.11,2.69]
[1761319150801,30.02,190.3,190.11,2.69]
[1761319151197,30.02,190.3,190.13,2.69]
[1761319151397,65.66,190.29,190.13,2.69]
[1761319151594,65.66,190.29,190.14,2.69]
[1761319152502,65.64,190.3,190.14,2.69]
[1761319154600,65.64,190.3,190.14,4.7327]
[1761319154902,65.64,190.3,190.15,2.69]
[1761319155099,26.0,190.34,190.15,2.69]
[1761319155296,65.6,190.33,190.15,4.7324]
[1761319155496,65.58,190.32,190.16,2.69]
[1761319156904,65.54,190.31,190.16,2.69]
[1761319157899,4.84408742,190.33,190.16,2.69]
[1761319158399,276.08,190.35,190.16,2.69]
[1761319160202,276.08,190.35,190.16,9.20762741]
[1761319160408,276.08,190.35,190.17,2.69]
[1761319167419,276.08,190.35,190.17,6.51762741]
[1761319167714,276.08,190.35,190.18,2.69]
[1761319168106,65.64,190.34,190.19,2.69]
[1761319169009,0.91464617,190.39,190.19,2.69]
[1761319169215,17.69464617,190.39,190.23,2.69]
[1761319169710,16.78,190.39,190.24,2.69]
[1761319170108,0.91452598,190.42,190.24,2.69]
[1761319170305,1.48,190.41,190.25,2.69]
[1761319174420,1.48,190.41,190.26,2.69]
[1761319174621,1.48,190.41,190.27,2.69]
[1761319175714,0.91452598,190.42,190.28,2.69]
[1761319175921,2.12,190.47,190.28,2.69]
[1761319176125,0.91436979,190.45,190.28,2.69]
[1761319181627,26.0,190.44,190.28,2.69]
[1761319186629,26.0,190.43,190.28,2.69]
[1761319187026,26.0,190.43,190.24,4.86786947]
[1761319187224,26.0,190.43,190.25,2.87]
[1761319188533,26.0,190.42,190.25,2.87]
[1761319190928,27.98,190.41,190.26,2.87]
[1761319191135,27.98,190.41,190.27,2.87]
[1761319191732,27.98,190.41,190.27,4.86786947]
[1761319191932,27.98,190.41,190.28,2.87]
[1761319194639,91.34,190.42,190.28,2.87]
[1761319194942,91.34,190.42,190.29,2.87]
[1761319197939,4.84980317,190.39,190.23,110.60488339]
[1761319198140,4.84980317,190.38,190.23,110.60488339]
[1761319198542,4.84980317,190.39,190.23,110.60488339]
[1761319200250,4.84980317,190.39,190.24,2.88]
[1761319200452,4.84980317,190.42,190.24,2.88]
[1761319200754,65.38,190.39,190.27,2.88]
[1761319203953,65.38,190.39,190.28,2.88]
[1761319204144,4.84980317,190.42,190.28,2.88]
[1761319204348,26.0,190.41,190.28,2.88]
[1761319204544,91.34,190.4,190.28,2.88]
[1761319204950,91.34,190.4,190.28,4.86786947]
[1761319205158,91.34,190.4,190.29,2.88]
[1761319206951,65.32,190.39,190.3,2.88]
[1761319207458,26.0,190.4,190.32,2.8]
[1761319207659,91.32,190.4,190.32,2.8]
[1761319207855,26.0,190.4,190.32,7.66786947]
[1761319208052,65.32,190.4,190.33,2.8]
[1761319209460,65.3,190.4,190.33,2.8]
[1761319209758,26.0,190.44,190.33,2.8]
[1761319209959,65.28,190.43,190.33,2.8]
[1761319210659,65.28,190.43,190.31,4.86786947]
[1761319210862,65.28,190.43,190.28,7.66786947]
[1761319211056,26.0,190.42,190.28,7.66786947]
[1761319211248,30.88458273,190.42,190.28,7.66786947]
[1761319212057,30.88458273,190.42,190.28,2.8]
[1761319212255,30.88458273,190.42,190.28,7.66786947]
[1761319212761,30.88458273,190.42,190.28,2.8]
[1761319213453,30.88458273,190.42,190.27,4.86786947]
[1761319213755,4.88458273,190.39,190.25,4.86786947]
[1761319213960,4.88458273,190.39,190.26,2.8]
[1761319213961,26.0,190.38,190.26,2.8]
[1761319214148,91.26,190.38,190.26,7.66786947]
[1761319214554,26.0,190.38,190.26,7.66786947]
[1761319214754,65.28,190.37,190.27,2.8]
[1761319215662,65.26,190.36,190.27,2.8]
[1761319215857,65.24,190.35,190.27,2.8]
[1761319216457,26.0,190.38,190.27,2.8]
[1761319216658,65.24,190.37,190.27,2.8]
[1761319216865,65.24,190.37,190.25,4.86786947]
[1761319217164,65.24,190.37,190.24,4.86786947]
[1761319217362,65.24,190.37,190.25,4.86786947]
[1761319217575,70.12458273,190.37,190.24,2.8]
[1761319218261,26.0,190.36,190.24,2.8]
[1761319220659,26.0,190.36,190.25,2.8]
[1761319220867,36.14,190.35,190.27,2.8]
[1761319223660,10.6503213,190.45,190.34,4.90323472]
[1761319223661,66.13436979,190.45,190.34,4.90323472]
[1761319223861,66.13436979,190.45,190.36,2.8]
[1761319224161,66.31436979,190.45,190.36,2.8]
[1761319225759,0.91436979,190.45,190.36,2.8]
[1761319225965,66.29436979,190.45,190.36,2.8]
[1761319228660,66.29436979,190.45,190.34,4.90323472]
[1761319228870,66.29436979,190.45,190.33,2.8]
[1761319229069,66.29436979,190.45,190.32,4.90323472]
[1761319229367,65.34,190.44,190.3,7.70323472]
[1761319229569,65.34,190.44,190.31,2.8]
[1761319232272,5.79864057,190.45,190.36,2.8]
[1761319232273,0.91436979,190.45,190.36,2.8]
[1761319232660,65.42,190.44,190.36,2.8]
[1761319234466,65.42,190.44,190.37,2.8]
[1761319238471,65.42,190.44,190.38,2.7]
[1761319239065,65.42,190.44,190.39,2.7]
[1761319242071,65.42,190.44,190.36,7.60323472]
[1761319242270,65.42,190.44,190.37,2.7]
[1761319243168,65.42,190.44,190.37,7.60323472]
[1761319243364,65.42,190.44,190.37,2.7]
[1761319248083,65.42,190.44,190.37,7.60323472]
[1761319248288,65.42,190.44,190.38,2.7]
[1761319251585,65.42,190.44,190.38,7.60323472]
[1761319251787,65.42,190.44,190.38,2.7]
[1761319253089,26.0,190.52,190.39,2.7]
[1761319253387,65.08,190.51,190.39,2.7]
[1761319253586,0.91398555,190.5,190.39,2.7]
[1761319253885,0.91398555,190.5,190.4,2.7]
[1761319263394,0.91398555,190.5,190.4,7.60323472]
[1761319263898,0.91398555,190.5,190.37,4.90323472]
[1761319264090,0.91398555,190.5,190.37,2.62]
[1761319264091,33.82,190.49,190.37,2.62]
[1761319264490,33.82,190.49,190.38,2.62]
[1761319264893,65.06,190.48,190.38,2.62]
[1761319265091,65.06,190.48,190.4,2.62]
[1761319265696,65.06,190.47,190.4,2.62]
[1761319266100,65.06,190.47,190.4,7.52323472]
[1761319266403,65.06,190.47,190.41,7.52323472]
[1761319266593,65.06,190.47,190.42,2.62]
[1761319267201,65.06,190.48,190.42,7.52323472]
[1761319267790,26.0,190.59,190.43,2.86]
[1761319268092,29.4136616,190.58,190.47,2.86]
[1761319268297,28.5,190.57,190.47,2.86]
[1761319268599,28.5,190.57,190.48,2.86]
[1761319268801,0.9136616,190.58,190.49,7.76323472]
[1761319268999,44.34,190.57,190.5,4.83426228]
[1761319269302,44.34,190.57,190.51,4.83426228]
[1761319269492,44.34,190.57,190.52,4.83426228]
[1761319269689,44.34,190.57,190.53,4.83426228]
[1761319269893,44.34,190.57,190.54,4.83426228]
[1761319270197,44.34,190.57,190.48,2.86]
[1761319270593,44.34,190.57,190.48,7.76323472]
[1761319270894,44.34,190.57,190.48,4.90323472]
[1761319271096,44.34,190.57,190.49,4.90323472]
[1761319271902,0.9136616,190.58,190.48,4.90323472]
[1761319272098,0.9136616,190.58,190.5,2.86]
[1761319272404,0.9136616,190.58,190.5,7.76323472]
[1761319272590,0.9136616,190.58,190.51,2.86]
[1761319273500,0.9136616,190.58,190.51,7.76323472]
[1761319274205,0.9136616,190.58,190.51,2.86]
[1761319274397,0.9136616,190.58,190.51,7.76323472]
[1761319274597,0.9136616,190.58,190.52,2.86]
[1761319275702,0.9136616,190.58,190.53,7.76323472]
[1761319276005,0.9136616,190.58,190.54,2.86]
[1761319277105,0.9136616,190.58,190.5,6.51762741]
[1761319277106,0.9136616,190.58,190.52,4.90323472]
[1761319277496,0.9136616,190.58,190.52,2.86]
[1761319278100,0.9136616,190.58,190.53,2.86]
[1761319281896,65.04,190.73,190.57,2.86]
[1761319282102,65.04,190.72,190.57,2.86]
[1761319282503,210.02,190.74,190.57,2.86]
[1761319282701,210.02,190.74,190.52,15.78]
[1761319282702,65.02,190.73,190.59,2.86]
[1761319283505,65.93294253,190.73,190.59,2.86]
[1761319283899,65.02,190.72,190.59,2.86]
[1761319284699,0.91294253,190.73,190.6,2.86]
[1761319284902,225.60826265,190.74,190.6,2.86]
[1761319285099,225.60826265,190.74,190.63,2.86]
[1761319285298,210.02,190.74,190.63,2.86]
[1761319286308,254.73595151,190.94,190.63,2.86]
[1761319286309,15.78,190.94,190.66,4.90323472]
[1761319286510,65.02,190.93,190.72,2.86]
[1761319286813,209.86,191.03,190.74,2.86]
[1761319286814,12.72,190.92,190.74,2.86]
[1761319287011,47.28,190.91,190.74,2.86]
[1761319287408,0.9122246,190.88,190.74,2.86]
[1761319287718,24.72,190.87,190.74,2.86]
[1761319290102,11.04,190.86,190.56,4.81561384]
[1761319290304,21.4,190.85,190.54,2.86]
[1761319290608,219.78,190.84,190.54,2.86]
[1761319291005,124.0,190.83,190.54,2.86]
[1761319291206,4.83514117,190.78,190.54,2.86]
[1761319291515,8.58,190.77,190.54,2.86]
[1761319292309,4.83514117,190.75,190.54,2.86]
[1761319292507,4.83514117,190.74,190.41,2.86]
[1761319292709,4.83514117,190.72,190.41,2.86]
[1761319292904,4.83514117,190.73,190.41,2.86]
[1761319293104,4.83514117,190.73,190.42,2.86]
[1761319293910,2.72,190.72,190.42,2.86]
[1761319294107,4.83514117,190.74,190.42,2.86]
[1761319294302,0.9,190.73,190.42,2.86]
[1761319294505,0.5,190.72,190.42,2.86]
[1761319294711,0.5,190.72,190.43,2.86]
[1761319295314,4.83514117,190.74,190.43,2.86]
[1761319295517,2.72,190.73,190.43,2.86]
[1761319296012,2.96,190.72,190.43,2.86]
[1761319296207,2.28,190.71,190.43,2.86]
[1761319296407,2.28,190.7,190.43,2.86]
[1761319297315,1.72,190.69,190.43,2.86]
[1761319298710,20.61514117,190.65,190.39,2.75]
[1761319299008,8.69063434,190.68,190.27,2.75]
[1761319299009,4.83514117,190.6,190.27,2.75]
[1761319299214,4.83514117,190.56,190.27,2.75]
[1761319299415,3.66,190.55,190.27,2.75]
[1761319299606,4.83514117,190.57,190.29,2.75]
[1761319299811,15.6,190.56,190.29,2.75]
[1761319300012,20.61514117,190.55,190.29,2.75]
[1761319300312,16.76,190.54,190.29,2.75]
[1761319300616,16.36,190.53,190.29,2.75]
[1761319300920,13.26,190.52,190.31,2.75]
[1761319301108,13.26,190.51,190.31,2.75]
[1761319301409,10.06,190.5,190.31,2.75]
[1761319301625,10.06,190.49,190.31,2.75]
[1761319302511,20.61514117,190.53,190.31,2.75]
[1761319302816,4.83514117,190.51,190.31,2.75]
[1761319303214,4.83514117,190.54,190.31,2.75]
[1761319303515,38.71514117,190.53,190.31,2.75]
[1761319303819,20.22806259,190.53,190.31,2.75]
[1761319304013,36.24,190.52,190.31,2.75]
[1761319304219,41.07514117,190.52,190.31,2.75]
[1761319305914,56.85514117,190.52,190.3,2.75]
[1761319306721,20.61514117,190.51,190.3,2.75]
[1761319307423,15.78,190.51,190.3,2.75]
[1761319307919,20.61514117,190.51,190.3,2.75]
[1761319308323,15.78,190.51,190.3,2.75]
[1761319308519,20.61514117,190.49,190.24,2.75]
[1761319308821,144.61514117,190.49,190.24,2.75]
[1761319309122,15.78,190.47,190.24,2.75]
[1761319309928,66.82,190.46,190.24,2.75]
[1761319310117,66.8,190.45,190.24,2.75]
[1761319311019,59.88,190.44,190.24,2.75]
[1761319319636,210.1,190.47,190.24,2.75]
[1761319319943,66.6,190.46,190.24,2.75]
[1761319320344,66.6,190.46,190.26,4.7298]
[1761319320543,66.6,190.45,190.27,2.78]
[1761319321145,66.58,190.44,190.28,2.78]
[1761319322043,66.58,190.44,190.29,4.729]
[1761319322250,66.58,190.44,190.28,2.78]
[1761319322251,66.58,190.44,190.3,2.78]
[1761319325154,66.54,190.43,190.3,2.78]
[1761319328051,210.1,190.47,190.3,2.78]
[1761319328258,66.5,190.46,190.3,2.78]
[1761319328555,66.5,190.46,190.22,15.78]
[1761319328556,210.1,190.47,190.32,2.76]
[1761319328758,66.42,190.46,190.32,2.76]
[1761319328947,66.42,190.51,190.32,2.76]
[1761319329146,66.42,190.51,190.34,2.76]
[1761319329855,66.42,190.51,190.22,273.18851003]
[1761319329856,40.36,190.51,190.36,2.76]
[1761319331653,55.6,190.5,190.36,2.76]
[1761319334057,66.34,190.5,190.36,2.76]
[1761319335361,15.66923587,190.54,190.36,2.76]
[1761319335556,26.0,190.59,190.36,2.76]
[1761319335759,45.6,190.58,190.36,2.76]
[1761319336260,45.6,190.58,190.39,2.76]
[1761319337558,41.4644536,190.58,190.39,2.76]
[1761319337757,66.28,190.57,190.39,2.76]
[1761319337954,66.28,190.57,190.4,2.76]
[1761319338555,66.28,190.57,190.41,2.76]
[1761319338755,66.28,190.57,190.42,2.76]
[1761319338959,210.1,190.64,190.42,2.76]
[1761319339153,210.1,190.64,190.44,2.76]
[1761319339154,66.28,190.6,190.44,2.76]
[1761319341357,26.0,190.63,190.44,2.76]
[1761319341559,66.24,190.62,190.44,2.76]
[1761319342062,26.0,190.63,190.44,2.76]
[1761319342457,66.24,190.62,190.44,2.76]
[1761319342660,66.22,190.61,190.44,2.76]
[1761319343855,26.0,190.6,190.44,2.76]
[1761319344964,66.2,190.59,190.44,2.76]
[1761319346560,66.2,190.59,190.37,2.76]
[1761319346764,26.0,190.58,190.37,2.76]
[1761319347558,26.0,190.57,190.37,2.76]
[1761319348268,26.0,190.56,190.37,2.76]
[1761319350668,5.05514489,190.52,190.37,2.76]
[1761319350867,66.08,190.51,190.37,2.76]
[1761319353665,5.05514489,190.47,190.37,2.76]
[1761319354065,5.05514489,190.48,190.37,2.76]
[1761319354664,5.05514489,190.44,190.32,2.76]
[1761319354865,65.98,190.43,190.32,2.76]
[1761319355168,5.05514489,190.44,190.32,2.76]
[1761319355367,26.34,190.44,190.32,2.76]
[1761319355765,31.39514489,190.44,190.32,2.76]
[1761319355966,5.05514489,190.4,190.29,2.76]
[1761319360570,20.95793564,190.4,190.29,2.76]
[1761319361977,20.95793564,190.4,190.24,2.9]
[1761319362881,65.92,190.39,190.24,2.9]
[1761319363178,65.92,190.38,190.24,2.9]
[1761319366984,15.90279075,190.4,190.24,2.9]
[1761319367186,60.0,190.39,190.24,2.9]
[1761319369288,5.05514489,190.42,190.24,2.9]
[1761319369488,15.46400734,190.43,190.27,2.9]
[1761319369688,65.8,190.41,190.27,2.9]
[1761319371278,26.0,190.46,190.3,5.05514489]
[1761319371488,65.78,190.45,190.31,2.9]
[1761319372388,65.78,190.45,190.26,4.85747539]
[1761319372389,5.05514489,190.42,190.26,2.9]
[1761319372787,5.05514489,190.38,190.26,2.9]
[1761319373381,15.78,190.43,190.26,2.9]
[1761319373589,5.05514489,190.38,190.26,2.9]
[1761319374078,5.05514489,190.34,190.19,2.9]
[1761319374283,65.8,190.33,190.19,2.9]
[1761319377286,5.05514489,190.3,190.19,2.9]
[1761319378192,5.05514489,190.25,190.1,2.81]
[1761319378395,48.02,190.24,190.1,2.81]
[1761319378585,49.6,190.23,190.1,2.81]
[1761319378781,49.6,190.22,190.1,2.81]
[1761319378985,47.12,190.22,190.1,2.81]
[1761319379189,5.05514489,190.28,190.1,2.81]
[1761319379493,5.05514489,190.26,190.1,2.81]
[1761319379988,3.98,190.25,190.1,2.81]
[1761319383292,5.05514489,190.22,190.1,2.81]
[1761319383795,5.05514489,190.22,190.06,2.81]
[1761319384689,5.05514489,190.21,190.06,2.81]
[1761319385292,65.76,190.2,190.06,2.81]
[1761319385490,65.76,190.19,190.06,2.81]
[1761319386299,81.41542025,190.19,190.06,2.81]
[1761319386997,15.65542025,190.19,190.06,2.81]
[1761319387197,65.74,190.18,190.06,2.81]
[1761319387595,70.79514489,190.18,190.06,2.81]
[1761319389593,70.79514489,190.18,190.01,2.79]
[1761319390192,5.05514489,190.14,190.01,2.79]
[1761319390787,5.05514489,190.15,190.01,2.79]
[1761319390993,13.2,190.14,190.01,2.79]
[1761319391396,15.87231127,190.19,190.01,2.79]
[1761319391591,5.05514489,190.16,190.01,2.79]
[1761319393097,5.05514489,190.17,190.01,2.79]
[1761319393294,20.66888594,190.19,190.04,5.05514489]
[1761319393497,25.56,190.18,190.05,2.79]
[1761319397602,15.61374105,190.19,190.05,2.79]
[1761319397802,8.35264719,190.21,190.05,2.79]
[1761319398301,30.34,190.2,190.05,2.79]
[1761319399604,46.0750257,190.2,190.05,2.79]
[1761319400506,50.91885093,190.2,190.05,2.79]
[1761319407417,8.35264719,190.17,189.96,2.79]
[1761319410210,13.19647242,190.17,189.96,2.79]
[1761319414410,4.84382523,190.16,189.96,2.79]
[1761319415019,4.84382523,190.17,189.96,2.79]
[1761319415319,4.84382523,190.18,190.04,2.79]
[1761319415515,65.52,190.17,190.04,2.79]
[1761319415906,4.84382523,190.19,190.04,2.79]
[1761319416111,65.52,190.18,190.04,2.79]
[1761319417213,70.36382523,190.18,190.04,2.79]
[1761319417406,4.84382523,190.17,190.04,2.79]
[1761319417919,65.52,190.16,190.04,2.79]
[1761319418312,4.84382523,190.19,190.07,8.35264719]
[1761319418507,226.1750257,190.2,190.08,2.84]
[1761319418713,210.44,190.2,190.14,2.84]
[1761319419019,65.52,190.19,190.14,2.84]
[1761319419219,65.52,190.18,190.14,2.84]
[1761319420820,275.94,190.2,190.14,6.29595725]
[1761319421124,275.94,190.2,190.15,2.84]
[1761319422717,65.5,190.2,190.15,2.84]
[1761319425322,65.5,190.21,190.15,2.84]
[1761319430022,65.48,190.23,190.15,2.84]
[1761319430220,65.48,190.22,190.15,2.84]
[1761319431531,3.45595725,190.25,190.15,2.84]
[1761319431829,20.47847556,190.27,190.15,2.84]
[1761319431830,3.45595725,190.22,190.15,2.84]
[1761319432131,3.45595725,190.19,190.15,2.84]
[1761319433022,65.48,190.24,190.15,2.84]
[1761319433222,3.45595725,190.21,190.08,3.45595725]
[1761319433527,3.45595725,190.18,190.09,2.84]
[1761319433727,65.48,190.24,190.09,2.84]
[1761319433923,3.45595725,190.16,190.09,2.84]
[1761319435532,64.62,190.17,190.02,2.84]
[1761319435533,3.45595725,190.1,190.02,2.84]
[1761319436830,3.45595725,190.07,190.02,2.84]
[1761319439233,65.48,190.09,190.02,2.84]
[1761319439436,68.93595725,190.09,190.02,2.84]
[1761319439635,3.45595725,190.06,190.02,2.84]
[1761319440029,65.48,190.09,190.02,2.84]
[1761319440230,3.45595725,190.06,190.02,2.84]
[1761319441443,65.48,190.09,190.02,2.84]
[1761319442939,4.84382523,190.2,190.03,3.45595725]
[1761319443142,3.45595725,190.22,190.09,2.9]
[1761319443439,3.45595725,190.24,190.12,2.9]
[1761319443942,3.45595725,190.21,190.12,2.9]
[1761319444142,3.45595725,190.15,190.08,2.9]
[1761319444535,3.45595725,190.2,190.08,2.9]
[1761319444741,25.4,190.23,190.08,2.9]
[1761319445340,3.45595725,190.16,190.08,2.9]
[1761319448251,3.45595725,190.19,190.08,2.9]
[1761319449653,25.4,190.23,190.08,2.9]
[1761319449848,3.45595725,190.2,190.08,2.9]
[1761319451463,65.46,190.21,190.08,2.9]
[1761319451666,3.45595725,190.19,190.08,2.9]
[1761319454160,3.45595725,190.15,190.08,2.9]
[1761319454765,3.45595725,190.12,190.03,4.88852542]
[1761319455067,3.45595725,190.12,190.04,2.81]
[1761319455268,3.45595725,190.09,190.04,2.81]
[1761319456871,2.215106,190.06,190.04,2.81]
[1761319458072,2.215106,190.06,190.05,7.53123948]
[1761319459361,2.215106,190.06,190.05,4.72123948]
[1761319461872,2.215106,190.06,190.05,7.53123948]
[1761319465269,2.215106,190.09,190.06,2.81]
[1761319465468,2.215106,190.09,190.08,2.81]
[1761319465772,2.215106,190.09,190.08,7.53123948]
[1761319468865,2.215106,190.11,190.08,7.53123948]
[1761319469076,2.215106,190.11,190.09,7.53123948]
[1761319469265,2.215106,190.11,190.1,4.72123948]
[1761319471770,2.215106,190.18,190.11,2.81]
[1761319471967,2.215106,190.18,190.1,5.78123948]
[1761319471968,2.215106,190.18,190.13,2.81]
[1761319472174,2.215106,190.16,190.14,7.53123948]
[1761319472383,2.215106,190.16,190.15,4.72123948]
[1761319473067,65.46,190.21,190.15,4.72123948]